Department family,Entity,Date,Expense type,Expense area,Supplier,Transaction number, Amount 
Rbth - Pharmacy,Rbth - Pharmacy,01/08/2020,Drugs - Budget,Diagnostic & Clinical Support,Aah Pharmaceuticals Ltd Hills,1876903,"54,311.08"
Rbth - Pharmacy,Rbth - Pharmacy,01/08/2020,Drugs - Budget,Diagnostic & Clinical Support,Aah Pharmaceuticals Ltd Hills,1870694,-142.94
Rbth - Pharmacy,Rbth - Pharmacy,01/08/2020,Drugs - Budget,Diagnostic & Clinical Support,Aah Pharmaceuticals Ltd Hills,1870696,-50.36
Rbth - Pharmacy,Rbth - Pharmacy,01/08/2020,Drugs - Budget,Diagnostic & Clinical Support,Aah Pharmaceuticals Ltd Hills,1870698,-22.00
Rbth - Pharmacy,Rbth - Pharmacy,01/08/2020,Drugs - Budget,Diagnostic & Clinical Support,Aah Pharmaceuticals Ltd Hills,1870700,-9.00
Rbth - Pharmacy,Rbth - Pharmacy,01/08/2020,Drugs - Budget,Diagnostic & Clinical Support,Aah Pharmaceuticals Ltd Hills,1870704,-7.40
Rbth - Pharmacy,Rbth - Pharmacy,01/08/2020,Drugs - Budget,Diagnostic & Clinical Support,Aah Pharmaceuticals Ltd Hills,1870705,-79.00
Rbth - Pharmacy,Rbth - Pharmacy,18/08/2020,Drugs - Budget,Diagnostic & Clinical Support,Baxter Healthcare Ltd,1882420,"21,742.86"
E&F Senior Managers,E&F Senior Managers,01/08/2020,Comp H Ware Purch Non-Capital,Estates & Facilities,Bowkers,1872945,"137,552.54"
Rbth Site Maintenance,Rbth Site Maintenance,01/08/2020,Security Services,Estates & Facilities,Burnley General Hosp Phase V Spc Ltd,1875827,"48,297.60"
Covid-19,Covid-19,01/08/2020,I.D Expenses,Non Directorate,Burnley General Hosp Phase V Spc Ltd,1868335,"71,641.44"
It Support,It Support,18/08/2020,Other Computer Costs Mats,Corporate Services,Bytes Software Services,1880235,"107,778.05"
Elht Administration,Elht Administration,01/08/2020,Photocopiers,Estates & Facilities,Canon Uk Limited,1869888,"30,864.76"
Comp Dept - Trading Account,Comp Dept - Trading Account,01/08/2020,Comp H Ware Purch Non-Capital,Corporate Services,Ccs Media Ltd,1867907,"24,960.00"
Systems Support,Systems Support,01/08/2020,Other Computer Costs Mats,Corporate Services,Clevermed Ltd,1876719,"53,372.03"
Balance Sheet,Balance Sheet,01/08/2020,Pfi Trust Support Payment,Non Directorate,Consort (Trust Support Payment),1868776,"48,582.66"
Balance Sheet,Balance Sheet,18/08/2020,Pfi Trust Support Payment,Non Directorate,Consort (Trust Support Payment),1874176,"48,582.66"
Elht Parking,Elht Parking,13/08/2020,Car Parking,Estates & Facilities,Consort Healthcare,1874179,"51,216.50"
Rbth Pfi Contract,Rbth Pfi Contract,01/08/2020,Pfi Unitary Charges,Corporate Services,Consort Healthcare,1874175,"1,728,063.12"
Elht Parking,Elht Parking,01/08/2020,Car Park Income - Elht,Estates & Facilities,Consort Healthcare,1871685,"-185,551.91"
Rbth - Pharmacy,Rbth - Pharmacy,20/08/2020,Drugs - Budget,Diagnostic & Clinical Support,Csl Behring,1883139,"25,200.00"
Rbth - Pharmacy,Rbth - Pharmacy,20/08/2020,Drugs - Budget,Diagnostic & Clinical Support,Csl Behring,1883220,"31,500.00"
Bgth Energy,Bgth Energy,04/08/2020,Electricity,Estates & Facilities,Edf Energy,1872779,"90,049.93"
Bgth Energy,Bgth Energy,13/08/2020,Electricity,Estates & Facilities,Edf Energy,1881245,"92,455.34"
Balance Sheet,Balance Sheet,18/08/2020,Additions - Auc (P),Non Directorate,European Electronique,30267,"176,216.00"
Dietetics,Dietetics,01/08/2020,Med & Surg Supplies,Diagnostic & Clinical Support,Fresenius Kabi Ltd,1876202,"40,235.64"
Dietetics,Dietetics,01/08/2020,Med & Surg Supplies,Diagnostic & Clinical Support,Fresenius Kabi Ltd,1876205,"43,439.11"
Dietetics,Dietetics,18/08/2020,Med & Surg Supplies,Diagnostic & Clinical Support,Fresenius Kabi Ltd,1882048,"49,320.78"
Dietetics,Dietetics,20/08/2020,Med & Surg Supplies,Diagnostic & Clinical Support,Fresenius Kabi Ltd,1882050,"47,180.68"
Dietetics,Dietetics,20/08/2020,Med & Surg Equipment,Diagnostic & Clinical Support,Fresenius Kabi Ltd,1882051,"22,743.52"
Dietetics,Dietetics,18/08/2020,Med & Surg Supplies,Diagnostic & Clinical Support,Fresenius Kabi Ltd,1852666,-28.00
Elht-Microbiology,Elht-Microbiology,13/08/2020,Mes Contracts,Diagnostic & Clinical Support,Genmed Managed Services Ltd,1867279,"46,617.53"
Elht-Microbiology,Elht-Microbiology,13/08/2020,Mes Contracts,Diagnostic & Clinical Support,Genmed Managed Services Ltd,1871333,"161,265.70"
Elht-Microbiology,Elht-Microbiology,13/08/2020,Mes Contracts,Diagnostic & Clinical Support,Genmed Managed Services Ltd,1876150,"57,969.28"
Rbth - Pharmacy,Rbth - Pharmacy,03/08/2020,Drugs - Budget,Diagnostic & Clinical Support,Healthcare At Home Ltd,1879471,"66,900.00"
Rbth - Pharmacy,Rbth - Pharmacy,03/08/2020,Drugs - Budget,Diagnostic & Clinical Support,Healthcare At Home Ltd,1879477,"27,348.69"
Rbth - Pharmacy,Rbth - Pharmacy,03/08/2020,Drugs - Budget,Diagnostic & Clinical Support,Healthcare At Home Ltd,1879457,-300.74
Rbth - Pharmacy,Rbth - Pharmacy,03/08/2020,Drugs - Budget,Diagnostic & Clinical Support,Healthcare At Home Ltd,1879472,-149.64
Rbth Transport,Rbth Transport,13/08/2020,Car Hire - Other,Estates & Facilities,Holmeswood Coaches Limited,1880623,"54,946.52"
Balance Sheet,Balance Sheet,04/08/2020,Additions - Auc (P),Non Directorate,Integrated Health Projects,30228,"985,290.54"
Balance Sheet,Balance Sheet,11/08/2020,Additions - Auc (P),Non Directorate,Integrated Health Projects,29585,"29,397.41"
Balance Sheet,Balance Sheet,04/08/2020,Additions - Auc (P),Non Directorate,Integrated Health Projects,30053,"-29,397.41"
Covid-19,Covid-19,18/08/2020,Sla From Lancs Care Trust,Non Directorate,Lancashire And South Cumbria Nhs Ft,77656,"104,300.00"
Pro Elh Lancs T H Ft,Pro Elh Lancs T H Ft,06/08/2020,Test Referrals,Diagnostic & Clinical Support,Lancashire Teaching Hospitals Nhs Ft,77136,"48,868.39"
Pro Elh Lancs T H Ft,Pro Elh Lancs T H Ft,06/08/2020,Test Referrals,Diagnostic & Clinical Support,Lancashire Teaching Hospitals Nhs Ft,77182,"-78,187.50"
Trauma & Orth Med Staff,Trauma & Orth Med Staff,06/08/2020,Test Referrals,Surgical & Anaes Services,Lancashire Teaching Hospitals Nhs Ft,77002,"-8,766.21"
Director Of Finance,Director Of Finance,01/08/2020,Internal Audit Fees,Corporate Services,Liverpool University Hospitals Nhs Ft,77523,"34,382.21"
Bgth - Pharmacy,Bgth - Pharmacy,01/08/2020,Drugs - Budget,Diagnostic & Clinical Support,Liverpool University Hospitals Nhs Ft,77190,"-1,102.00"
Rbth - Cardiac Catheter Lab,Rbth - Cardiac Catheter Lab,18/08/2020,Purch Of Hc-Non Nhs-Priv Sect,Medicine & Emergency Care,Medtronic Ltd,1881914,"221,963.93"
Balance Sheet,Balance Sheet,11/08/2020,Metro Moneywise Credit Union,Non Directorate,Metro Moneywise Credit Union,1881467,"27,385.55"
Bgth  Endoscopy,Bgth  Endoscopy,04/08/2020,Med & Surg Maintenance,Medicine & Emergency Care,Nhs Supply Chain Maintenance Contracts 201,1877257,"38,546.48"
Rbth - Pharmacy,Rbth - Pharmacy,20/08/2020,Drugs - Budget,Diagnostic & Clinical Support,Novartis Pharmaceuticals Uk Ltd,1883227,"21,427.44"
Elht-Blood Sciences,Elht-Blood Sciences,20/08/2020,Mes Contracts,Diagnostic & Clinical Support,Ortho Clinical Diagnostics,1881691,"74,490.24"
Non Directorate Other Finance,Non Directorate Other Finance,18/08/2020,Valuation Fee,Non Directorate,Qe Facilities Ltd,1882218,"119,849.36"
Mfop & Complex Needs Med Staff,Mfop & Complex Needs Med Staff,01/08/2020,Purch Of Hc-Non Nhs-Priv Sect,Medicine & Emergency Care,Rmo International Healthcare Llp,1876706,"27,159.58"
Mfop & Complex Needs Med Staff,Mfop & Complex Needs Med Staff,01/08/2020,Purch Of Hc-Non Nhs-Priv Sect,Medicine & Emergency Care,Rmo International Healthcare Llp,1876708,"27,159.58"
Mfop & Complex Needs Med Staff,Mfop & Complex Needs Med Staff,13/08/2020,Purch Of Hc-Non Nhs-Priv Sect,Medicine & Emergency Care,Rmo International Healthcare Llp,1880406,"27,159.58"
Rbth - Pharmacy,Rbth - Pharmacy,18/08/2020,Drugs - Budget,Diagnostic & Clinical Support,Roche Products Ltd,1882376,"53,622.00"
Rbth - Pharmacy,Rbth - Pharmacy,18/08/2020,Drugs - Budget,Diagnostic & Clinical Support,Roche Products Ltd,1882827,"33,384.06"
Rbth - Pharmacy,Rbth - Pharmacy,20/08/2020,Drugs - Budget,Diagnostic & Clinical Support,Roche Products Ltd,1883207,"22,120.00"
Rbth - Pharmacy,Rbth - Pharmacy,20/08/2020,Drugs - Budget,Diagnostic & Clinical Support,Roche Products Ltd,1883208,"28,354.18"
Bgth - Pharmacy,Bgth - Pharmacy,06/08/2020,Drugs - Budget,Diagnostic & Clinical Support,Rowlands Pharmacy,1873578,"163,882.75"
Rbth - Pharmacy,Rbth - Pharmacy,04/08/2020,Drugs - Budget,Diagnostic & Clinical Support,Rowlands Pharmacy,1862028,"534,042.94"
Rbth - Pharmacy,Rbth - Pharmacy,06/08/2020,Drugs - Budget,Diagnostic & Clinical Support,Rowlands Pharmacy,1871891,"660,657.00"
Director Of Finance,Director Of Finance,18/08/2020,Sla From Elfs,Corporate Services,Salford Royal Nhs Foundation Trust,77542,"82,699.00"
Rfpb Still Birth Research,Rfpb Still Birth Research,06/08/2020,Rd Collaborators Fee,"Education, Research & Innov'N",University Of Manchester,1874770,"23,461.26"
Avh  Energy,Avh  Energy,01/08/2020,Water  & Sewerage,Estates & Facilities,Water Plus Limited,1678836,"96,382.40"
Avh  Energy,Avh  Energy,01/08/2020,Water  & Sewerage,Estates & Facilities,Water Plus Limited,1678827,"-6,619.91"
Avh  Energy,Avh  Energy,01/08/2020,Water  & Sewerage,Estates & Facilities,Water Plus Limited,1678830,"-5,684.36"
Avh  Energy,Avh  Energy,01/08/2020,Water  & Sewerage,Estates & Facilities,Water Plus Limited,1678831,"-6,329.34"
Avh  Energy,Avh  Energy,01/08/2020,Water  & Sewerage,Estates & Facilities,Water Plus Limited,1678832,-333.51
Avh  Energy,Avh  Energy,01/08/2020,Water  & Sewerage,Estates & Facilities,Water Plus Limited,1678833,"-6,071.51"
Avh  Energy,Avh  Energy,01/08/2020,Water  & Sewerage,Estates & Facilities,Water Plus Limited,1678834,"-5,668.34"
Avh  Energy,Avh  Energy,01/08/2020,Water  & Sewerage,Estates & Facilities,Water Plus Limited,1678835,"-80,474.86"
Avh  Energy,Avh  Energy,01/08/2020,Water  & Sewerage,Estates & Facilities,Water Plus Limited,1781629,"-7,757.41"
,,,,,,,"6,523,606.55"
,,,,,,,13047213.10
